bitfinex-derivatives/quotes_BTCF0:USTF0_20250709
["timestamp","ask_amount","ask_price","bid_price","bid_amount"]
[1752086830118,0.20161578,109470.0,109460.0,1.62312192]
[1752086831006,0.20161578,109470.0,109460.0,1.58215575]
[1752086831614,0.20161578,109470.0,109460.0,1.66399548]
[1752086832215,0.20161578,109470.0,109460.0,1.95859548]
[1752086834320,0.20161578,109470.0,109460.0,1.95859402]
[1752086835011,0.01894448,109470.0,109460.0,1.95859402]
[1752086836019,0.01894448,109470.0,109460.0,1.95859352]
[1752086836417,0.20161578,109470.0,109460.0,1.96859352]
[1752086836818,0.01894448,109470.0,109460.0,1.96859352]
[1752086838220,0.3196685,109480.0,109470.0,0.1826713]
[1752086838415,0.2933955,109480.0,109470.0,2.5719475]
[1752086838718,0.2933955,109480.0,109470.0,2.66752547]
[1752086838925,0.2933955,109480.0,109470.0,2.58568574]
[1752086839323,0.2933955,109480.0,109470.0,2.67662398]
[1752086839619,0.2953955,109480.0,109470.0,2.67662398]
[1752086839825,0.2953955,109480.0,109470.0,2.66752547]
[1752086840926,0.2963955,109480.0,109470.0,2.66752547]
[1752086846730,0.2507282,109480.0,109470.0,2.66752547]
[1752086847535,0.1556212,109490.0,109480.0,0.1826546]
[1752086847536,0.3196327,109490.0,109480.0,0.1826546]
[1752086847826,0.3196327,109490.0,109480.0,1.5999501]
[1752086848722,0.3236327,109490.0,109480.0,1.64078601]
[1752086849029,0.3236327,109490.0,109480.0,1.3567148]
[1752086849531,0.2779703,109490.0,109480.0,1.3567148]
[1752086849730,0.2759703,109490.0,109480.0,0.78857238]
[1752086849930,0.2759703,109490.0,109480.0,1.3577148]
[1752086850230,0.2303094,109490.0,109480.0,1.3577148]
[1752086850433,0.2283094,109490.0,109480.0,1.3577148]
[1752086851432,0.2433394,109490.0,109480.0,1.3260248]
[1752086851625,0.2433394,109490.0,109480.0,1.2943248]
[1752086851626,0.3049394,109490.0,109480.0,1.2943248]
[1752086854925,0.2899094,109490.0,109480.0,1.2943248]
[1752086855234,0.3049394,109490.0,109480.0,1.2943248]
[1752086856629,0.2899094,109490.0,109480.0,1.3100148]
[1752086856829,0.2283094,109490.0,109480.0,1.3430148]
[1752086858134,0.2283094,109490.0,109480.0,1.30217889]
[1752086858334,0.3833102,109500.0,109490.0,0.182638]
[1752086858538,0.3995802,109500.0,109490.0,2.51006747]
[1752086858930,0.3995802,109500.0,109490.0,2.54056747]
[1752086859529,0.4005802,109500.0,109490.0,2.54056747]
[1752086860444,0.4015802,109500.0,109490.0,2.54056747]
[1752086861642,0.4015802,109500.0,109490.0,2.5405661]
[1752086861940,0.4015802,109500.0,109490.0,2.54056612]
[1752086862444,0.4015802,109500.0,109490.0,2.51006612]
[1752086863140,0.4242402,109500.0,109490.0,1.9419237]
[1752086863443,0.4242402,109500.0,109490.0,2.51006612]
[1752086863836,0.4242402,109500.0,109490.0,2.22599491]
[1752086865945,0.4242402,109500.0,109490.0,2.51006612]
[1752086867038,0.4242402,109500.0,109490.0,2.21069491]
[1752086867351,0.4242402,109500.0,109490.0,1.9266237]
[1752086867547,0.4242402,109500.0,109490.0,2.21069491]
[1752086868341,0.4242402,109500.0,109490.0,2.48048927]
[1752086868537,0.4242402,109500.0,109490.0,2.4947661]
[1752086869550,0.3773848,109520.0,109510.0,0.1826046]
[1752086869756,0.3480048,109520.0,109510.0,2.75522226]
[1752086870050,0.26594849,109520.0,109510.0,2.82715244]
[1752086870240,0.26594849,109520.0,109510.0,2.85855244]
[1752086870638,0.25367849,109520.0,109510.0,2.87424244]
[1752086870851,0.25667849,109520.0,109510.0,2.58979534]
[1752086871164,0.005,109520.0,109510.0,2.59079534]
[1752086871343,0.005,109520.0,109510.0,2.87449066]
[1752086871649,0.005,109520.0,109510.0,2.59079534]
[1752086872753,0.187588,109520.0,109510.0,2.59079534]
[1752086873051,0.184588,109520.0,109510.0,2.59179534]
[1752086873854,0.184588,109520.0,109510.0,2.6326371]
[1752086874055,0.184588,109520.0,109510.0,2.64625427]
[1752086874249,0.184588,109520.0,109510.0,2.69634092]
[1752086874755,0.184588,109520.0,109510.0,2.6555431]
[1752086874943,0.184588,109520.0,109510.0,2.69634041]
[1752086875643,0.184588,109520.0,109510.0,2.73738283]
[1752086876054,0.184588,109520.0,109510.0,2.72310759]
[1752086876245,0.184588,109520.0,109510.0,2.73738046]
[1752086876446,0.184588,109520.0,109510.0,2.65554073]
[1752086876751,0.184588,109520.0,109510.0,2.73738046]
[1752086876955,0.184588,109520.0,109510.0,2.65554073]
[1752086877352,0.002,109520.0,109510.0,2.65554073]
[1752086877548,0.002,109530.0,109520.0,0.182588]
[1752086877746,0.002,109530.0,109520.0,1.26874371]
[1752086878050,0.002,109530.0,109520.0,1.28443371]
[1752086878753,0.002,109530.0,109520.0,1.53829882]
[1752086878946,0.002,109530.0,109520.0,1.55257069]
[1752086879146,0.002,109530.0,109520.0,1.53829882]
[1752086879549,0.1845714,109530.0,109520.0,1.55257028]
[1752086879759,0.1855714,109530.0,109520.0,1.53829882]
[1752086880048,0.1855714,109530.0,109520.0,1.55257055]
[1752086880443,0.003,109530.0,109520.0,1.55257055]
[1752086880648,0.1825584,109540.0,109530.0,0.3194754]
[1752086880849,0.1825584,109540.0,109530.0,2.708579]
[1752086881054,0.29270251,109550.0,109540.0,0.1825547]
[1752086881256,0.29270251,109550.0,109540.0,0.90405002]
[1752086881455,0.29270251,109550.0,109540.0,0.91974002]
[1752086881847,0.29270251,109550.0,109540.0,0.96022802]
[1752086882047,0.29270251,109550.0,109540.0,1.03492451]
[1752086882454,0.30897251,109550.0,109540.0,0.99443651]
[1752086883152,0.30897251,109550.0,109540.0,0.97874651]
[1752086883546,0.30897251,109550.0,109540.0,0.96344651]
[1752086883749,0.30897251,109550.0,109540.0,0.97874651]
[1752086884358,0.30897251,109550.0,109540.0,0.99443651]
[1752086884559,0.30897251,109550.0,109540.0,0.99300979]
[1752086885359,0.30897251,109550.0,109540.0,0.93184651]
[1752086885560,0.39623251,109550.0,109540.0,0.94714651]
[1752086885858,0.39623251,109550.0,109540.0,0.93184651]
[1752086886158,0.39623251,109550.0,109540.0,0.94714651]
[1752086886358,0.37357251,109550.0,109540.0,0.94714651]
[1752086887059,0.37357251,109550.0,109540.0,0.96140643]
[1752086887262,0.37357251,109550.0,109540.0,0.9614064]
[1752086887554,0.37357251,109550.0,109540.0,0.96140478]
[1752086887756,0.29270251,109550.0,109540.0,0.96283651]
[1752086887953,0.29270251,109550.0,109540.0,1.00959793]
[1752086888352,0.29270251,109550.0,109540.0,1.00959692]
[1752086888554,0.29270251,109550.0,109540.0,0.99533651]
[1752086888762,0.29270251,109550.0,109540.0,1.03581447]
[1752086889864,0.30843251,109550.0,109540.0,1.02012447]
[1752086890362,0.33893251,109550.0,109540.0,1.02012447]
[1752086891263,0.33893251,109550.0,109540.0,1.0290889]
[1752086891664,0.33893251,109550.0,109540.0,1.02012447]
[1752086892168,0.30843251,109550.0,109540.0,1.02012447]
[1752086892353,0.30843251,109550.0,109540.0,1.03581447]
[1752086893364,0.30843251,109550.0,109540.0,1.05002848]
[1752086894055,0.30843251,109550.0,109540.0,1.0500285]
[1752086894970,0.30843251,109550.0,109540.0,1.0343385]
[1752086895868,0.24706441,109550.0,109540.0,1.0500285]
[1752086897463,0.26279441,109550.0,109540.0,1.0190385]
[1752086898574,0.61008973,109550.0,109540.0,0.49018848]
[1752086898755,0.61008973,109550.0,109540.0,1.30652016]
[1752086899269,0.32639441,109550.0,109540.0,1.59021548]
[1752086899473,0.32639441,109550.0,109540.0,1.22941548]
[1752086899867,0.32639441,109550.0,109540.0,1.59021548]
[1752086900066,0.32639441,109550.0,109540.0,1.63083385]
[1752086901268,0.32639441,109550.0,109540.0,1.55613736]
[1752086902568,0.35013441,109550.0,109540.0,1.27244204]
[1752086902770,0.35013441,109550.0,109540.0,1.55613736]
[1752086903268,0.35013441,109550.0,109540.0,1.61059629]
[1752086904671,0.31066441,109550.0,109540.0,1.61059629]
[1752086904869,0.35013441,109550.0,109540.0,1.62129931]
[1752086905069,0.35013441,109550.0,109540.0,1.58114189]
[1752086906471,0.35013441,109550.0,109540.0,1.29744657]
[1752086906673,0.35013441,109550.0,109540.0,1.58114189]
[1752086907375,0.35013441,109550.0,109540.0,1.29744657]
[1752086907580,0.35013441,109550.0,109540.0,1.58114189]
[1752086908568,0.35013441,109550.0,109540.0,1.29744657]
[1752086908774,0.63382973,109550.0,109540.0,0.12037177]
[1752086909072,0.63382973,109550.0,109540.0,0.15050074]
[1752086909465,0.63382973,109550.0,109540.0,0.09604181]
[1752086909665,0.63382973,109550.0,109540.0,0.09604222]
[1752086909866,0.35013441,109550.0,109540.0,0.56229234]
[1752086910071,0.35013441,109550.0,109540.0,0.57828234]
[1752086910270,0.35013441,109550.0,109540.0,0.11203222]
[1752086910476,0.35013441,109550.0,109540.0,0.39572754]
[1752086910774,1.62826973,109550.0,109540.0,0.09604222]
[1752086911565,0.98377441,109550.0,109540.0,0.09604222]
[1752086911874,1.62826973,109550.0,109540.0,0.09604222]
[1752086912073,1.62826973,109550.0,109540.0,0.09549703]
[1752086912578,1.34457441,109550.0,109540.0,0.09549703]
[1752086912878,1.62826973,109550.0,109540.0,0.09549703]
[1752086913180,1.81084574,109550.0,109540.0,0.09549703]
[1752086913477,1.81084574,109550.0,109540.0,0.05466407]
[1752086913979,1.81084574,109550.0,109540.0,0.09549703]
[1752086914164,1.81084574,109550.0,109540.0,0.05466407]
[1752086914367,1.52715042,109550.0,109540.0,0.05466407]
[1752086914569,1.81084574,109550.0,109540.0,0.05466407]
[1752086915274,1.52715042,109550.0,109540.0,0.05466407]
[1752086915474,1.81084574,109550.0,109540.0,0.05466489]
[1752086915984,1.45080574,109550.0,109540.0,0.05466489]
[1752086916176,1.81160574,109550.0,109540.0,0.05466489]
[1752086916983,0.51698042,109550.0,109540.0,0.05466489]
[1752086917182,1.16699042,109550.0,109540.0,0.33836021]
[1752086917477,1.16699042,109550.0,109540.0,0.23721969]
[1752086917683,0.53271042,109550.0,109540.0,0.27805265]
[1752086917981,1.16719042,109550.0,109540.0,0.0954202]
[1752086918684,0.98461441,109550.0,109540.0,0.0954202]
[1752086919383,0.98461441,109550.0,109540.0,0.39528552]
[1752086919584,0.98461441,109550.0,109540.0,0.37911552]
[1752086919887,0.35013441,109550.0,109540.0,0.37911552]
[1752086920076,0.98461441,109550.0,109540.0,0.37911552]
[1752086920276,0.98461441,109550.0,109540.0,0.39528552]
[1752086920475,0.35083441,109550.0,109540.0,0.39528552]
[1752086920681,0.27072441,109550.0,109540.0,0.93864022]
[1752086920877,0.27072441,109550.0,109540.0,1.00044022]
[1752086921381,0.27072441,109550.0,109540.0,1.00043856]
[1752086921580,0.22507841,109550.0,109540.0,1.06559943]
[1752086921881,0.22507841,109550.0,109540.0,1.05489749]
[1752086922077,0.20141841,109550.0,109540.0,1.0655998]
[1752086922279,0.20141841,109550.0,109540.0,1.07058749]
[1752086923082,0.20141841,109550.0,109540.0,1.01612856]
[1752086923483,0.20141841,109550.0,109540.0,1.07058749]
[1752086924081,0.21792841,109550.0,109540.0,1.05489749]
[1752086924279,0.21792841,109550.0,109540.0,1.01408704]
[1752086925578,0.21792841,109550.0,109540.0,0.97374893]
[1752086925785,0.21792841,109550.0,109540.0,1.01416942]
[1752086925986,0.21792841,109550.0,109540.0,1.05498575]
[1752086926679,0.21792841,109550.0,109540.0,1.01416942]
[1752086928388,0.21792841,109550.0,109540.0,1.01416924]
[1752086928584,0.21792841,109550.0,109540.0,0.99989944]
[1752086928785,0.21792841,109550.0,109540.0,1.00052966]
[1752086931690,0.21792841,109550.0,109540.0,1.01123213]
[1752086932389,0.21792841,109550.0,109540.0,0.72753681]
[1752086932589,0.21792841,109550.0,109540.0,1.01123213]
[1752086935495,0.21792841,109550.0,109540.0,1.02692213]
[1752086936294,0.21792841,109550.0,109540.0,1.01621966]
[1752086938692,0.21792841,109550.0,109540.0,1.07067859]
[1752086939492,0.21792841,109550.0,109540.0,0.77129327]
[1752086939698,0.21792841,109550.0,109540.0,1.05498859]
[1752086940292,0.21792841,109550.0,109540.0,1.05498876]
[1752086940492,0.21792841,109550.0,109540.0,1.07067876]
[1752086942198,0.21792841,109550.0,109540.0,1.05640879]
[1752086942497,0.21792841,109550.0,109540.0,1.07067874]
[1752086943408,0.21792841,109550.0,109540.0,1.02985939]
[1752086944105,0.21792841,109550.0,109540.0,0.9894389]
[1752086944407,0.21792841,109550.0,109540.0,1.02983992]
[1752086946212,0.20141841,109550.0,109540.0,1.03983992]
[1752086946607,0.20141841,109550.0,109540.0,1.12167965]
[1752086946904,0.1825381,109550.0,109540.0,1.12167965]
[1752086947104,0.1845214,109560.0,109550.0,0.1825381]
[1752086947409,0.1845214,109560.0,109550.0,2.80025037]
[1752086947610,0.1845214,109560.0,109550.0,2.7975445]
[1752086948204,0.1855214,109560.0,109550.0,2.79754248]
[1752086948710,0.1855214,109560.0,109550.0,2.79854248]
[1752086948910,0.1845214,109560.0,109550.0,2.79954248]
[1752086950203,0.1845214,109560.0,109550.0,2.80883961]
[1752086950503,0.1845214,109560.0,109550.0,3.10343961]
[1752086950710,0.1845214,109560.0,109550.0,2.95343961]
[1752086950909,0.1845214,109560.0,109550.0,2.66974429]
[1752086951211,0.1845214,109560.0,109550.0,2.65974429]
[1752086951416,0.1845214,109560.0,109550.0,2.67974429]
[1752086952202,0.1845214,109560.0,109550.0,2.66904331]
[1752086953313,0.1845214,109560.0,109550.0,2.67974407]
[1752086953911,0.1845214,109560.0,109550.0,2.66904331]
[1752086954106,0.1845214,109560.0,109550.0,2.65974407]
[1752086954311,0.1845214,109560.0,109550.0,2.66904331]
[1752086955314,0.1845214,109560.0,109550.0,2.95273863]
[1752086956016,0.1845214,109560.0,109550.0,2.66904331]
[1752086958006,0.1845214,109560.0,109550.0,2.72340342]
[1752086962820,0.1845214,109560.0,109550.0,2.7234032]
[1752086964115,0.1845214,109560.0,109550.0,2.66904309]
[1752086965619,0.1845214,109560.0,109550.0,2.66904312]
[1752086966022,0.1845214,109560.0,109550.0,2.67974391]
[1752086966522,0.1845214,109560.0,109550.0,2.66904312]
[1752086967118,0.2032163,109560.0,109550.0,2.64788391]
[1752086968019,0.2032163,109560.0,109550.0,2.63718312]
[1752086968527,0.2032163,109560.0,109550.0,2.65287312]
[1752086968721,0.2032163,109560.0,109550.0,2.62540372]
[1752086970128,0.2032163,109560.0,109550.0,2.60971372]
[1752086970725,0.2032163,109560.0,109550.0,2.62041451]
[1752086971218,0.2032163,109560.0,109550.0,2.65049661]
[1752086971417,0.2184663,109560.0,109550.0,2.65049661]
[1752086971925,0.2184663,109560.0,109550.0,2.60959948]
[1752086972236,0.2834663,109560.0,109550.0,1.31078955]
[1752086972421,0.2834663,109560.0,109550.0,1.94422955]
[1752086973025,0.2834663,109560.0,109550.0,1.88985922]
[1752086973525,0.3072163,109560.0,109550.0,1.49173514]
[1752086973719,0.3072163,109560.0,109550.0,1.45094218]
[1752086974123,0.3072163,109560.0,109550.0,1.15634218]
[1752086974929,0.3072163,109560.0,109550.0,0.87264686]
[1752086975129,0.3072163,109560.0,109550.0,1.17140218]
[1752086975329,0.3072163,109560.0,109550.0,1.15634218]
[1752086976532,0.3072163,109560.0,109550.0,1.19713514]
[1752086978934,0.3072163,109560.0,109550.0,1.25236654]
[1752086981731,0.3072163,109560.0,109550.0,1.61316654]
[1752086988837,0.3072163,109560.0,109550.0,1.61316804]
[1752086989039,0.3072163,109560.0,109550.0,1.5988988]
[1752086989339,0.3072163,109560.0,109550.0,1.61316804]
[1752086990133,0.2834663,109560.0,109550.0,1.61316804]
[1752086993443,0.2834663,109560.0,109550.0,1.64616804]
[1752086993641,0.2834663,109560.0,109550.0,1.60534429]
[1752086994042,0.2834663,109560.0,109550.0,1.64616188]
[1752086994240,0.2834663,109560.0,109550.0,1.46362378]
[1752086994445,0.2834663,109560.0,109550.0,1.64616188]
[1752086997741,0.2647714,109560.0,109550.0,1.64616188]
[1752086997937,0.2647714,109560.0,109550.0,1.67676188]
[1752086998137,0.2647714,109560.0,109550.0,1.63594429]
[1752086998942,0.2647714,109560.0,109550.0,1.63581549]
[1752086999251,0.2647714,109560.0,109550.0,1.6771522]
[1752086999448,0.2647714,109560.0,109550.0,1.63631607]
[1752087001442,0.2647714,109560.0,109550.0,1.91988259]
[1752087001642,0.2319714,109560.0,109550.0,1.63631607]
[1752087001939,0.1997714,109560.0,109550.0,1.63631607]
[1752087003248,0.1997714,109560.0,109550.0,1.7181558]
[1752087004850,0.1997714,109560.0,109550.0,1.63631607]
[1752087005749,0.1997714,109560.0,109550.0,1.71815602]
[1752087006948,0.1997714,109560.0,109550.0,1.53561792]
[1752087007449,0.1997714,109560.0,109550.0,1.71815602]
[1752087008849,0.1997714,109560.0,109550.0,1.53561792]
[1752087009049,0.1997714,109560.0,109550.0,1.45377819]
[1752087009750,0.1997714,109560.0,109550.0,1.63631629]
[1752087010046,0.48364792,109560.0,109550.0,0.53677167]
[1752087010242,0.48364792,109560.0,109550.0,0.16879203]
[1752087010243,1.14681013,109560.0,109550.0,0.16879203]
[1752087010442,0.84941013,109560.0,109550.0,0.10015224]
[1752087010636,1.84341013,109560.0,109550.0,0.38371876]
[1752087011047,1.84341013,109560.0,109550.0,0.39799019]
[1752087011245,1.84341013,109560.0,109550.0,0.38371876]
[1752087011445,1.84341013,109560.0,109550.0,0.3428384]
[1752087012750,1.55984361,109560.0,109550.0,0.05927188]
[1752087013447,1.55984361,109560.0,109550.0,0.3428384]
[1752087013747,1.56868361,109560.0,109550.0,0.3272984]
[1752087014258,1.56868361,109560.0,109550.0,0.3428384]
[1752087014956,1.56868361,109560.0,109550.0,0.05927188]
[1752087015451,1.56868361,109560.0,109550.0,0.3428384]
[1752087017251,1.56868361,109560.0,109550.0,0.3272984]
[1752087017452,1.56868361,109560.0,109550.0,0.3428384]
[1752087018052,1.56868361,109560.0,109550.0,0.30110652]
[1752087020558,1.56868361,109560.0,109550.0,0.28556652]
[1752087020751,1.56868361,109560.0,109550.0,0.30110652]
[1752087021556,1.28511709,109560.0,109550.0,0.30110652]
[1752087021761,1.56868361,109560.0,109550.0,0.30110652]
[1752087021955,0.20331709,109560.0,109550.0,0.58467304]
[1752087022147,0.20331709,109560.0,109550.0,0.84480114]
[1752087022457,0.20331709,109560.0,109550.0,1.89437022]
[1752087022953,0.20331709,109560.0,109550.0,1.61075196]
[1752087024059,0.20331709,109560.0,109550.0,1.57952196]
[1752087025157,0.20331709,109560.0,109550.0,1.63110396]
[1752087027149,0.20331709,109560.0,109550.0,1.62040232]
[1752087028159,0.20331709,109560.0,109550.0,1.33688754]
[1752087028351,0.21887709,109560.0,109550.0,1.33688754]
[1752087028657,0.21887709,109560.0,109550.0,1.62040232]
[1752087028859,0.21887709,109560.0,109550.0,1.63389229]
[1752087029450,0.21887709,109560.0,109550.0,0.81815419]
[1752087029648,0.24327709,109560.0,109550.0,1.69016726]
[1752087029855,0.24327709,109560.0,109550.0,1.67462726]
[1752087030060,0.24327709,109560.0,109550.0,1.62025693]
[1752087030664,0.24327709,109560.0,109550.0,1.60598659]
[1752087032264,0.24327709,109560.0,109550.0,1.32247181]
[1752087032465,0.24327709,109560.0,109550.0,1.60598659]
[1752087032656,0.27567709,109560.0,109550.0,1.60598659]
[1752087035865,0.23571709,109560.0,109550.0,1.60598659]
[1752087036053,0.25127709,109560.0,109550.0,1.60598659]
[1752087039168,0.21887709,109560.0,109550.0,1.60598659]
[1752087040761,0.21887709,109560.0,109550.0,1.62025603]
[1752087045180,0.21887709,109560.0,109550.0,1.62029081]
[1752087049168,0.21887709,109560.0,109550.0,1.60602137]
[1752087049367,0.21887709,109560.0,109550.0,1.67466114]
[1752087050370,0.21887709,109560.0,109550.0,0.85896304]
[1752087050575,0.21887709,109560.0,109550.0,1.67454114]
[1752087051575,0.24957709,109560.0,109550.0,1.67454114]
[1752087057280,0.21887709,109560.0,109550.0,1.9580907]
[1752087057481,0.21887709,109560.0,109550.0,1.9737807]
[1752087058180,0.21887709,109560.0,109550.0,1.9580907]
[1752087058379,0.21887709,109560.0,109550.0,1.39099158]
[1752087058679,0.21887709,109560.0,109550.0,1.67454114]
[1752087058980,0.21887709,109560.0,109550.0,1.62017081]
[1752087059690,0.21887709,109560.0,109550.0,1.60590137]
[1752087059891,0.21887709,109560.0,109550.0,1.62017081]
[1752087060879,0.20331709,109560.0,109550.0,1.91941037]
[1752087068707,0.20331709,109560.0,109550.0,1.9437075]
[1752087069200,0.1845214,109560.0,109550.0,1.9437075]
[1752087070398,0.1845214,109560.0,109550.0,1.94370709]
[1752087071403,0.1845214,109560.0,109550.0,1.92801709]
[1752087071602,0.1845214,109560.0,109550.0,1.94370709]
[1752087071805,0.1845214,109560.0,109550.0,2.01484505]
[1752087072798,0.1845214,109560.0,109550.0,2.0323665]
[1752087073001,0.1845214,109560.0,109550.0,2.03203618]
[1752087073598,0.1999214,109560.0,109550.0,2.03203618]
[1752087073798,0.1999214,109560.0,109550.0,1.95019645]
[1752087076902,0.1999214,109560.0,109550.0,1.93450645]
[1752087077508,0.1999214,109560.0,109550.0,1.75196854]
[1752087077693,0.1999214,109560.0,109550.0,1.46841898]
[1752087078005,0.2608214,109560.0,109550.0,1.43661898]
[1752087078806,0.2608214,109560.0,109550.0,1.47746341]
[1752087079309,0.2608214,109560.0,109550.0,1.47746363]
[1752087079802,0.2608214,109560.0,109550.0,1.66000173]
[1752087080805,0.2608214,109560.0,109550.0,1.69050173]
[1752087083405,0.2608214,109560.0,109550.0,1.6496573]
[1752087083801,0.2608214,109560.0,109550.0,1.18356964]
[1752087084002,0.2608214,109560.0,109550.0,1.4671192]
[1752087084507,0.56738096,109560.0,109550.0,1.08656454]
[1752087084709,0.56738096,109560.0,109550.0,0.45352454]
[1752087084905,0.56738096,109560.0,109550.0,0.46926454]
[1752087085206,0.56738096,109560.0,109550.0,0.46926496]
[1752087088206,1.20014096,109560.0,109550.0,0.46926496]
[1752087088600,1.56094096,109560.0,109550.0,0.46926496]
[1752087088909,1.56094096,109560.0,109550.0,0.11560507]
[1752087088910,1.84449052,109560.0,109550.0,0.11560507]
[1752087089100,1.48369052,109560.0,109550.0,0.11560507]
[1752087089300,1.84449052,109560.0,109550.0,0.11560507]
[1752087089501,1.84449052,109560.0,109550.0,0.10133521]
[1752087090206,1.84449052,109560.0,109550.0,0.06048987]
[1752087090911,1.84449052,109560.0,109550.0,0.07476088]
[1752087093914,1.84449052,109560.0,109550.0,0.06048987]
[1752087094410,1.2773914,109560.0,109550.0,0.06048987]
[1752087094606,1.84449052,109560.0,109550.0,0.06048987]
[1752087095109,1.92648309,109560.0,109550.0,0.06048987]
[1752087095405,1.92648309,109560.0,109550.0,0.01919113]
[1752087097414,1.84449052,109560.0,109550.0,0.01919113]
[1752087097909,1.84449052,109560.0,109540.0,0.00013694]
[1752087097910,0.1825381,109550.0,109540.0,0.00013694]
[1752087098115,1.58016238,109550.0,109540.0,0.03978976]
[1752087099318,1.58016238,109550.0,109540.0,0.04178976]
[1752087099518,1.58016238,109550.0,109540.0,0.04478976]
[1752087099708,0.66389282,109550.0,109540.0,0.32833932]
[1752087099906,1.21936238,109550.0,109540.0,0.32833932]
[1752087100411,1.21936238,109550.0,109540.0,0.04478976]
[1752087100615,1.21936238,109550.0,109540.0,0.2886865]
[1752087100816,1.21936238,109550.0,109540.0,0.30295832]
[1752087101115,1.21936238,109550.0,109540.0,0.2886865]
[1752087101916,1.21936238,109550.0,109540.0,0.00513694]
[1752087102115,1.21936238,109550.0,109540.0,0.2886865]
[1752087102312,0.30309282,109550.0,109540.0,0.3045865]
[1752087102512,1.21936238,109550.0,109540.0,0.58813606]
[1752087102721,1.21936238,109550.0,109540.0,0.3669865]
[1752087102915,1.21936238,109550.0,109540.0,0.65053606]
[1752087103212,1.21936238,109550.0,109540.0,0.3669865]
[1752087103417,1.21936238,109550.0,109540.0,0.38125832]
[1752087105722,0.93581282,109550.0,109540.0,0.38125832]
[1752087105913,1.21936238,109550.0,109540.0,0.38125832]
[1752087106109,1.21936238,109550.0,109540.0,0.3669865]
[1752087106314,1.21936238,109550.0,109540.0,0.65053606]
[1752087106821,1.21936238,109550.0,109540.0,0.08343694]
[1752087107120,1.21936238,109550.0,109540.0,0.3669865]
[1752087107823,1.21936238,109550.0,109540.0,0.38125832]
[1752087108321,1.21936238,109550.0,109540.0,0.3669865]
[1752087113131,1.30135495,109550.0,109540.0,0.3669865]
[1752087113323,1.01780539,109550.0,109540.0,0.3669865]
[1752087113522,0.58664238,109550.0,109540.0,0.3669865]
[1752087113719,1.21928238,109550.0,109540.0,0.3669865]
[1752087114124,1.21928238,109550.0,109540.0,0.38125822]
[1752087114933,0.93573282,109550.0,109540.0,0.09770866]
[1752087115231,0.87323282,109550.0,109540.0,1.02560778]
[1752087116041,0.87323282,109550.0,109540.0,0.66480778]
[1752087116436,1.15678238,109550.0,109540.0,0.66480778]
[1752087117141,1.23877495,109550.0,109540.0,0.68994445]
[1752087117335,1.23877495,109550.0,109540.0,0.704216]
[1752087117841,1.23877495,109550.0,109540.0,0.42066644]
[1752087118742,1.15678238,109550.0,109540.0,0.42066644]
[1752087121247,1.15678238,109550.0,109540.0,0.704216]
[1752087121545,1.11803238,109550.0,109540.0,0.688316]
[1752087121744,1.14215238,109550.0,109540.0,0.42066644]
[1752087122044,1.14215238,109550.0,109540.0,0.40476644]
[1752087122744,1.14215238,109550.0,109540.0,0.42066644]
[1752087123847,1.17445238,109550.0,109540.0,0.42066644]
[1752087124043,1.17445238,109550.0,109540.0,0.13711688]
[1752087124240,1.17445238,109550.0,109540.0,0.43004382]
[1752087124441,1.20645238,109550.0,109540.0,0.43004382]
[1752087124949,0.92290282,109550.0,109540.0,0.43004382]
[1752087125148,1.22219238,109550.0,109540.0,0.43004382]
[1752087126853,1.22219238,109550.0,109540.0,0.46284382]
[1752087127254,0.89878282,109550.0,109540.0,0.44694382]
[1752087127453,1.22219238,109550.0,109540.0,0.44694382]
[1752087127857,1.22219238,109550.0,109540.0,0.46258382]
[1752087128954,0.93864282,109550.0,109540.0,0.46258382]
[1752087129146,1.22219238,109550.0,109540.0,0.74613338]
[1752087129453,1.22219238,109550.0,109540.0,0.46258382]
[1752087130753,1.22219238,109550.0,109540.0,0.44831227]
[1752087130964,1.22219238,109550.0,109540.0,0.46258382]
[1752087131256,1.22219238,109550.0,109540.0,0.17903426]
[1752087131441,1.22219238,109550.0,109540.0,0.46258382]
[1752087131648,1.22219238,109550.0,109540.0,0.42978382]
[1752087131845,0.93864282,109550.0,109540.0,0.42978382]
[1752087132157,1.22219238,109550.0,109540.0,0.41551227]
[1752087132952,1.22219238,109550.0,109540.0,0.42978368]
[1752087133153,1.22219238,109550.0,109540.0,1.07413324]
[1752087133342,0.93864282,109550.0,109540.0,1.10443324]
[1752087133547,1.22219238,109550.0,109540.0,0.82088368]
[1752087135556,1.22219238,109550.0,109540.0,0.46008368]
[1752087135757,1.22219238,109550.0,109540.0,0.17653412]
[1752087135949,1.22219238,109550.0,109540.0,0.46008368]
[1752087137251,1.22219238,109550.0,109540.0,0.42978368]
[1752087138852,1.22219238,109550.0,109540.0,0.41551227]
[1752087139259,1.22219238,109550.0,109540.0,0.13196271]
[1752087139461,1.22219238,109550.0,109540.0,0.41551227]
[1752087139651,0.93864282,109550.0,109540.0,0.41551227]
[1752087139852,1.22219238,109550.0,109540.0,0.41551227]
[1752087140760,0.93864282,109550.0,109540.0,0.42978391]
[1752087140962,1.22219238,109550.0,109540.0,0.42978391]
[1752087142762,0.58955238,109550.0,109540.0,0.42978391]
[1752087142964,1.22187238,109550.0,109540.0,0.42978391]
[1752087143163,1.22187238,109550.0,109540.0,0.14623435]
[1752087143665,1.22187238,109550.0,109540.0,0.42978391]
[1752087144363,1.22187238,109550.0,109540.0,0.34959814]
[1752087144565,0.93832282,109550.0,109540.0,0.43030428]
[1752087144767,1.22187238,109550.0,109540.0,0.43030428]
[1752087146964,0.58955238,109550.0,109540.0,0.43030428]
[1752087147165,1.22175238,109550.0,109540.0,0.43030428]
[1752087147966,1.58255238,109550.0,109540.0,0.43030428]
[1752087148168,1.58255238,109550.0,109540.0,0.38366428]
[1752087148364,1.58255238,109550.0,109540.0,0.10011472]
[1752087148572,1.29900282,109550.0,109540.0,0.38366428]
[1752087148773,1.66454495,109550.0,109540.0,0.34278857]
[1752087152471,1.30374495,109550.0,109540.0,0.34278857]
[1752087152772,1.30370495,109550.0,109540.0,0.34278857]
[1752087154468,1.66450495,109550.0,109540.0,0.34278857]
[1752087156274,1.30370495,109550.0,109540.0,0.34278857]
[1752087158774,1.22171238,109550.0,109540.0,0.38366428]
[1752087160278,1.22171238,109550.0,109540.0,0.38366439]
[1752087160474,0.30600282,109550.0,109540.0,1.22799209]
[1752087160774,0.87370282,109550.0,109540.0,1.24360209]
[1752087160976,0.87370282,109550.0,109540.0,1.30800209]
[1752087161277,1.15725238,109550.0,109540.0,0.94720209]
[1752087161468,0.87370282,109550.0,109540.0,1.12544739]
[1752087161872,0.87370282,109550.0,109540.0,1.30800209]
[1752087162070,1.15725238,109550.0,109540.0,0.84189783]
[1752087162372,0.87370282,109550.0,109540.0,1.02445253]
[1752087162576,1.15725238,109550.0,109540.0,1.30800209]
[1752087163177,1.15725238,109550.0,109540.0,1.30800136]
[1752087163571,0.87370282,109550.0,109540.0,1.30800136]
[1752087163767,1.15725238,109550.0,109540.0,1.30800136]
[1752087163971,1.15725238,109550.0,109540.0,1.36237169]
[1752087164378,1.15725238,109550.0,109540.0,1.30800136]
[1752087164679,1.15725238,109550.0,109540.0,1.12544666]
[1752087164881,1.15725238,109550.0,109540.0,0.61271787]